[Event "NJSK 2022 Jeugd C"]
[Site "Almelo, Netherlands"]
[Date "2022.05.05"]
[Round "7.4"]
[White "Madularea, David"]
[Black "Kazarjan, Gachatur"]
[Result "1-0"]
[TimeControl "90min + 30sec/move"]
[WhiteElo "1774"]
[BlackElo "1661"]

1. e4 {[%clk 01:30:54]} {[%emt 00:00:06]} Nf6 {[%clk 01:30:56]} {[%emt
00:00:04]} 2. e5 {[%clk 01:31:08]} {[%emt 00:00:16]} Nd5 {[%clk 01:31:21]}
{[%emt 00:00:05]} 3. d4 {[%clk 01:31:20]} {[%emt 00:00:17]} d6 {[%clk
01:31:46]} {[%emt 00:00:06]} 4. c4 {[%clk 01:31:46]} {[%emt 00:00:03]} Nb6
{[%clk 01:32:12]} {[%emt 00:00:05]} 5. exd6 {[%clk 01:32:10]} {[%emt 00:00:05]}
cxd6 {[%clk 01:32:37]} {[%emt 00:00:06]} 6. Nc3 {[%clk 01:30:29]} {[%emt
00:02:11]} g6 {[%clk 01:31:51]} {[%emt 00:01:16]} 7. h3 {[%clk 01:29:53]}
{[%emt 00:01:06]} Bg7 {[%clk 01:30:50]} {[%emt 00:01:32]} 8. Nf3 {[%clk
01:29:31]} {[%emt 00:00:51]} O-O {[%clk 01:29:49]} {[%emt 00:01:31]} 9. Be2
{[%clk 01:26:37]} {[%emt 00:03:24]} Nc6 {[%clk 01:27:39]} {[%emt 00:02:40]} 10.
Be3 {[%clk 01:24:55]} {[%emt 00:02:12]} e5 {[%clk 01:23:13]} {[%emt 00:04:56]}
11. d5 {[%clk 01:21:07]} {[%emt 00:04:18]} Ne7 {[%clk 01:20:37]} {[%emt
00:03:05]} 12. b4 {[%clk 01:14:47]} {[%emt 00:06:51]} Re8 {[%clk 01:16:17]}
{[%emt 00:04:50]} 13. O-O {[%clk 01:08:35]} {[%emt 00:06:41]} f5 {[%clk
01:12:23]} {[%emt 00:04:25]} 14. c5 {[%clk 00:59:27]} {[%emt 00:09:39]} f4
{[%clk 01:06:23]} {[%emt 00:06:30]} 15. cxd6 {[%clk 00:43:08]} {[%emt
00:16:48]} Nf5 {[%clk 00:59:21]} {[%emt 00:07:32]} 16. Bc5 {[%clk 00:40:27]}
{[%emt 00:03:11]} e4 {[%clk 00:52:49]} {[%emt 00:07:02]} 17. Nd4 {[%clk
00:40:26]} {[%emt 00:00:31]} Nxd4 {[%clk 00:49:45]} {[%emt 00:03:34]} 18. Bxd4
{[%clk 00:40:50]} {[%emt 00:00:06]} f3 {[%clk 00:48:03]} {[%emt 00:02:12]} 19.
Bb5 {[%clk 00:38:54]} {[%emt 00:02:25]} Qg5 {[%clk 00:43:31]} {[%emt 00:05:04]}
20. g3 {[%clk 00:35:24]} {[%emt 00:03:59]} Qf5 {[%clk 00:39:33]} {[%emt
00:04:29]} 21. Re1 {[%clk 00:34:25]} {[%emt 00:01:28]} Bd7 {[%clk 00:35:35]}
{[%emt 00:04:29]} 22. Bxd7 {[%clk 00:34:09]} {[%emt 00:00:45]} Nxd7 {[%clk
00:35:03]} {[%emt 00:01:02]} 23. Kh2 {[%clk 00:34:31]} {[%emt 00:00:08]} Bf8
{[%clk 00:33:51]} {[%emt 00:01:42]} 24. Qb1 {[%clk 00:32:38]} {[%emt 00:02:23]}
Bxd6 {[%clk 00:33:07]} {[%emt 00:01:15]} 25. Nxe4 {[%clk 00:31:46]} {[%emt
00:01:21]} Qxd5 {[%clk 00:31:30]} {[%emt 00:02:08]} 26. Nxd6 {[%clk 00:22:19]}
{[%emt 00:09:57]} Qxd4 {[%clk 00:29:10]} {[%emt 00:02:50]} 27. Qb3+ {[%clk
00:22:36]} {[%emt 00:00:12]} Kh8 {[%clk 00:29:36]} {[%emt 00:00:05]} 28. Nf7+
{[%clk 00:22:30]} {[%emt 00:00:35]} Kg7 {[%clk 00:30:05]} {[%emt 00:00:02]} 29.
Qxf3 {[%clk 00:22:10]} {[%emt 00:00:49]} Nf6 {[%clk 00:29:25]} {[%emt
00:01:10]} 30. Ng5 {[%clk 00:21:59]} {[%emt 00:00:39]} Qb6 {[%clk 00:29:30]}
{[%emt 00:00:28]} 31. Rad1 {[%clk 00:18:47]} {[%emt 00:03:41]} Kg8 {[%clk
00:25:43]} {[%emt 00:04:16]} 32. Rxe8+ {[%clk 00:13:29]} {[%emt 00:05:49]} Rxe8
{[%clk 00:25:56]} {[%emt 00:00:17]} 33. Rd7 {[%clk 00:12:44]} {[%emt 00:01:16]}
Rf8 {[%clk 00:22:31]} {[%emt 00:03:54]} 34. Rxb7 {[%clk 00:11:46]} {[%emt
00:01:28]} Qa6 {[%clk 00:20:05]} {[%emt 00:02:57]} 35. Qb3+ {[%clk 00:06:08]}
{[%emt 00:06:07]} Kh8 {[%clk 00:20:24]} {[%emt 00:00:12]} 36. Rf7 {[%clk
00:05:33]} {[%emt 00:01:04]} Rxf7 {[%clk 00:17:24]} {[%emt 00:03:31]} 37. Qxf7
{[%clk 00:05:54]} {[%emt 00:00:08]} Qd6 {[%clk 00:17:15]} {[%emt 00:00:40]} 38.
Qxh7+ {[%clk 00:06:15]} {[%emt 00:00:09]} 1-0

[Event "NJSK 2022 Jeugd C"]
[Site "Almelo, Netherlands"]
[Date "2022.05.05"]
[Round "7.5"]
[White "Agarwal, Pranav"]
[Black "Dekker, Thiemen"]
[Result "1/2-1/2"]
[TimeControl "90min + 30sec/move"]
[WhiteElo "1531"]
[BlackElo "1935"]

1. Nf3 {[%clk 01:30:47]} {[%emt 00:00:12]} Nf6 {[%clk 01:30:52]} {[%emt
00:00:07]} 2. d4 {[%clk 01:31:06]} {[%emt 00:00:13]} d5 {[%clk 01:31:16]}
{[%emt 00:00:06]} 3. c4 {[%clk 01:31:28]} {[%emt 00:00:08]} e6 {[%clk
01:31:39]} {[%emt 00:00:06]} 4. Nc3 {[%clk 01:31:18]} {[%emt 00:00:40]} a6
{[%clk 01:31:52]} {[%emt 00:00:18]} 5. Bf4 {[%clk 01:31:10]} {[%emt 00:00:38]}
dxc4 {[%clk 01:30:30]} {[%emt 00:01:52]} 6. e4 {[%clk 01:29:46]} {[%emt
00:01:54]} b5 {[%clk 01:28:56]} {[%emt 00:02:04]} 7. e5 {[%clk 01:27:55]}
{[%emt 00:02:21]} Nd5 {[%clk 01:27:18]} {[%emt 00:02:08]} 8. Nxd5 {[%clk
01:27:09]} {[%emt 00:01:16]} Qxd5 {[%clk 01:25:28]} {[%emt 00:02:20]} 9. Be2
{[%clk 01:25:29]} {[%emt 00:02:10]} Bb7 {[%clk 01:20:53]} {[%emt 00:05:04]} 10.
O-O {[%clk 01:22:43]} {[%emt 00:03:16]} Nc6 {[%clk 01:18:37]} {[%emt 00:02:47]}
11. b3 {[%clk 01:19:43]} {[%emt 00:03:30]} cxb3 {[%clk 01:14:14]} {[%emt
00:04:52]} 12. axb3 {[%clk 01:16:45]} {[%emt 00:03:29]} Ne7 {[%clk 01:10:56]}
{[%emt 00:03:49]} 13. Ne1 {[%clk 01:14:18]} {[%emt 00:02:56]} Qd7 {[%clk
01:10:10]} {[%emt 00:01:16]} 14. Bf3 {[%clk 01:13:54]} {[%emt 00:00:54]} Nd5
{[%clk 01:09:13]} {[%emt 00:01:27]} 15. Rc1 {[%clk 01:10:26]} {[%emt 00:03:59]}
Be7 {[%clk 01:03:52]} {[%emt 00:05:50]} 16. Nd3 {[%clk 01:06:33]} {[%emt
00:04:22]} b4 {[%clk 00:58:42]} {[%emt 00:05:40]} 17. Bd2 {[%emt 00:09:59]} a5
{[%clk 00:55:42]} {[%emt 00:03:29]} 18. Nc5 {[%clk 00:57:05]} {[%emt 00:00:31]}
Bxc5 {[%clk 00:55:53]} {[%emt 00:00:20]} 19. Rxc5 {[%clk 00:57:20]} {[%emt
00:00:14]} c6 {[%clk 00:51:50]} {[%emt 00:04:33]} 20. Bxd5 {[%clk 00:54:21]}
{[%emt 00:03:28]} exd5 {[%clk 00:45:15]} {[%emt 00:07:05]} 21. f4 {[%clk
00:50:34]} {[%emt 00:04:17]} Qf5 {[%clk 00:42:24]} {[%emt 00:03:22]} 22. Be3
{[%clk 00:49:34]} {[%emt 00:01:30]} h5 {[%clk 00:38:52]} {[%emt 00:04:02]} 23.
Qa1 {[%clk 00:41:42]} {[%emt 00:08:22]} Qd3 {[%clk 00:33:57]} {[%emt 00:05:25]}
24. Rf3 {[%clk 00:40:48]} {[%emt 00:01:23]} g6 {[%clk 00:31:24]} {[%emt
00:03:04]} 25. h3 {[%clk 00:37:50]} {[%emt 00:03:27]} a4 {[%clk 00:28:10]}
{[%emt 00:03:44]} 26. Bf2 {[%clk 00:35:13]} {[%emt 00:03:07]} Qa6 {[%clk
00:25:47]} {[%emt 00:02:53]} 27. bxa4 {[%clk 00:32:42]} {[%emt 00:03:02]} Qxa4
{[%clk 00:25:25]} {[%emt 00:00:52]} 28. Qxa4 {[%clk 00:32:56]} {[%emt
00:00:15]} Rxa4 {[%clk 00:25:48]} {[%emt 00:00:08]} 29. Rb3 {[%clk 00:33:19]}
{[%emt 00:00:06]} Kd7 {[%clk 00:22:54]} {[%emt 00:03:24]} 30. Be1 {[%clk
00:31:02]} {[%emt 00:02:48]} Ba6 {[%clk 00:20:29]} {[%emt 00:02:54]} 31. Rxb4
{[%clk 00:30:19]} {[%emt 00:01:12]} Rxb4 {[%clk 00:20:38]} {[%emt 00:00:23]} 32.
Bxb4 {[%clk 00:30:40]} {[%emt 00:00:09]} Bb5 {[%clk 00:20:33]} {[%emt
00:00:35]} 33. Rc2 {[%clk 00:28:18]} {[%emt 00:02:51]} Ra8 {[%clk 00:19:36]}
{[%emt 00:01:28]} 34. Bc3 {[%clk 00:28:03]} {[%emt 00:00:45]} Ra3 {[%clk
00:18:28]} {[%emt 00:01:38]} 35. Bb4 {[%clk 00:25:00]} {[%emt 00:03:33]} Ra4
{[%clk 00:18:04]} {[%emt 00:00:54]} 36. Bc5 {[%clk 00:24:50]} {[%emt 00:00:40]}
Ke6 {[%clk 00:16:03]} {[%emt 00:02:31]} 37. Kf2 {[%clk 00:24:46]} {[%emt
00:00:33]} Kf5 {[%clk 00:14:45]} {[%emt 00:01:48]} 38. Rc3 {[%clk 00:23:48]}
{[%emt 00:01:29]} Ra1 {[%clk 00:14:09]} {[%emt 00:01:05]} 39. Rf3 {[%clk
00:23:23]} {[%emt 00:00:55]} Rf1+ {[%clk 00:13:32]} {[%emt 00:01:08]} 40. Kg3
{[%clk 00:23:48]} {[%emt 00:00:05]} h4+ {[%clk 00:13:01]} {[%emt 00:01:00]} 41.
Kxh4 {[%clk 00:23:00]} {[%emt 00:01:18]} Rxf3 {[%clk 00:13:19]} {[%emt
00:00:12]} 42. gxf3 {[%clk 00:23:22]} {[%emt 00:00:08]} Kxf4 {[%clk 00:13:36]}
{[%emt 00:00:13]} 43. Bd6 {[%clk 00:23:23]} {[%emt 00:00:29]} Kf5 {[%clk
00:10:50]} {[%emt 00:03:16]} 44. f4 {[%clk 00:23:18]} {[%emt 00:00:36]} 1/2-1/2

[Event "NJSK 2022 Jeugd C"]
[Site "Almelo, Netherlands"]
[Date "2022.05.05"]
[Round "7.6"]
[White "Fallaux, Storm"]
[Black "Ponomarev, Ivan"]
[Result "1/2-1/2"]
[TimeControl "90min + 30sec/move"]
[WhiteElo "1459"]
[BlackElo "1744"]

1. e4 {[%clk 01:30:59]} c5 {[%clk 01:30:58]} {[%emt 00:00:03]} 2. Nf3 {[%clk
01:31:26]} {[%emt 00:00:03]} e6 {[%clk 01:31:25]} {[%emt 00:00:03]} 3. d4
{[%clk 01:31:51]} {[%emt 00:00:05]} cxd4 {[%clk 01:31:52]} {[%emt 00:00:03]} 4.
Nxd4 {[%clk 01:32:18]} {[%emt 00:00:03]} Nc6 {[%clk 01:32:17]} {[%emt
00:00:05]} 5. Nc3 {[%clk 01:32:44]} {[%emt 00:00:04]} a6 {[%clk 01:32:43]}
{[%emt 00:00:04]} 6. Be2 {[%clk 01:33:10]} {[%emt 00:00:04]} Qc7 {[%clk
01:30:09]} {[%emt 00:03:04]} 7. f4 {[%clk 01:33:01]} {[%emt 00:00:38]} d6
{[%clk 01:28:45]} {[%emt 00:01:54]} 8. Bf3 {[%clk 01:31:36]} {[%emt 00:01:55]}
Nf6 {[%clk 01:25:42]} {[%emt 00:03:34]} 9. Nxc6 {[%clk 01:31:11]} {[%emt
00:00:55]} bxc6 {[%clk 01:25:54]} {[%emt 00:00:17]} 10. Be3 {[%clk 01:30:57]}
{[%emt 00:00:44]} d5 {[%clk 01:21:19]} {[%emt 00:05:06]} 11. O-O {[%clk
01:30:14]} {[%emt 00:01:13]} Be7 {[%clk 01:16:35]} {[%emt 00:05:14]} 12. exd5
{[%clk 01:28:35]} {[%emt 00:02:09]} cxd5 {[%clk 01:15:03]} {[%emt 00:02:02]} 13.
Na4 {[%clk 01:25:48]} {[%emt 00:03:17]} O-O {[%clk 01:10:23]} {[%emt 00:05:08]}
14. c4 {[%clk 01:26:01]} {[%emt 00:00:19]} Bb7 {[%clk 01:02:29]} {[%emt
00:08:24]} 15. Rc1 {[%clk 01:25:13]} {[%emt 00:01:18]} dxc4 {[%clk 01:00:00]}
{[%emt 00:02:59]} 16. Bxb7 {[%clk 01:24:42]} {[%emt 00:01:00]} Qxb7 {[%clk
01:00:24]} {[%emt 00:00:07]} 17. Rxc4 {[%clk 01:24:14]} {[%emt 00:00:58]} Rac8
{[%clk 00:55:51]} {[%emt 00:04:59]} 18. Nb6 {[%clk 01:21:35]} {[%emt 00:03:12]}
Rxc4 {[%clk 00:54:56]} {[%emt 00:01:26]} 19. Nxc4 {[%clk 01:21:57]} {[%emt
00:00:08]} Rd8 {[%clk 00:46:22]} {[%emt 00:09:03]} 20. Qf3 {[%clk 01:20:55]}
{[%emt 00:01:32]} Qb5 {[%emt 00:03:47]} 21. b3 {[%clk 01:20:34]} Bc5 {[%clk
00:39:02]} {[%emt 00:05:24]} 22. Rd1 {[%clk 01:16:14]} {[%emt 00:04:52]} Rxd1+
{[%clk 00:34:32]} {[%emt 00:04:59]} 23. Qxd1 {[%clk 01:16:36]} {[%emt
00:00:08]} Bxe3+ {[%clk 00:34:30]} {[%emt 00:00:32]} 24. Nxe3 {[%clk 01:16:25]}
{[%emt 00:00:41]} h6 {[%clk 00:33:10]} {[%emt 00:01:50]} 25. Nc4 {[%clk
01:14:08]} {[%emt 00:02:46]} Qc5+ {[%clk 00:30:51]} {[%emt 00:02:50]} 26. Kf1
{[%clk 01:13:53]} {[%emt 00:00:45]} Nd5 {[%clk 00:28:53]} {[%emt 00:02:28]} 27.
g3 {[%clk 01:13:46]} {[%emt 00:00:36]} Ne3+ {[%clk 00:28:28]} {[%emt 00:00:55]}
28. Nxe3 {[%clk 01:14:08]} {[%emt 00:00:09]} Qxe3 {[%clk 00:28:53]} {[%emt
00:00:04]} 29. Qe2 {[%clk 01:14:32]} {[%emt 00:00:07]} Qc1+ {[%clk 00:28:01]}
{[%emt 00:01:22]} 30. Kg2 {[%clk 01:14:23]} {[%emt 00:00:39]} a5 {[%clk
00:27:30]} {[%emt 00:01:01]} 31. Qf2 {[%clk 01:13:19]} {[%emt 00:01:33]} Qc7
{[%clk 00:26:11]} {[%emt 00:01:50]} 32. Qe2 {[%clk 01:13:10]} {[%emt 00:00:39]}
Qc6+ {[%clk 00:24:41]} {[%emt 00:02:00]} 33. Qf3 {[%clk 01:13:09]} {[%emt
00:00:30]} Qc5 {[%clk 00:20:29]} {[%emt 00:04:42]} 34. Qa8+ {[%clk 01:13:02]}
{[%emt 00:00:38]} Kh7 {[%clk 00:18:50]} {[%emt 00:02:08]} 35. Qe4+ {[%clk
01:13:25]} {[%emt 00:00:08]} Kg8 {[%clk 00:12:21]} {[%emt 00:06:59]} 1/2-1/2

[Event "NJSK 2022 Jeugd C"]
[Site "Almelo, Netherlands"]
[Date "2022.05.05"]
[Round "7.7"]
[White "Kurt, Sascha"]
[Black "Lopes, Samuel"]
[Result "1-0"]
[TimeControl "90min + 30sec/move"]
[WhiteElo "1834"]
[BlackElo "1600"]

1. e4 {[%clk 01:30:57]} {[%emt 00:00:02]} c5 {[%clk 01:30:56]} {[%emt
00:00:05]} 2. Nf3 {[%clk 01:31:23]} {[%emt 00:00:04]} e6 {[%clk 01:31:21]}
{[%emt 00:00:06]} 3. d4 {[%clk 01:31:49]} {[%emt 00:00:03]} cxd4 {[%clk
01:31:46]} {[%emt 00:00:05]} 4. Nxd4 {[%clk 01:32:16]} {[%emt 00:00:03]} a6
{[%clk 01:32:07]} {[%emt 00:00:09]} 5. Bd3 {[%clk 01:32:40]} {[%emt 00:00:06]}
Bc5 {[%clk 01:32:28]} {[%emt 00:00:09]} 6. Nb3 {[%clk 01:32:19]} {[%emt
00:00:51]} Ba7 {[%clk 01:32:53]} {[%emt 00:00:05]} 7. O-O {[%clk 01:32:20]}
{[%emt 00:00:29]} Nc6 {[%clk 01:31:34]} {[%emt 00:01:49]} 8. c4 {[%clk
01:29:54]} {[%emt 00:02:56]} d6 {[%clk 01:29:47]} {[%emt 00:02:17]} 9. Nc3
{[%clk 01:29:38]} {[%emt 00:00:45]} Nf6 {[%clk 01:24:38]} {[%emt 00:05:40]} 10.
Kh1 {[%clk 01:28:23]} {[%emt 00:01:45]} Ne5 {[%clk 01:20:10]} {[%emt 00:04:59]}
11. Be2 {[%clk 01:25:28]} {[%emt 00:03:23]} Qc7 {[%clk 01:19:57]} {[%emt
00:00:44]} 12. Nd2 {[%clk 01:24:31]} {[%emt 00:01:26]} h5 {[%clk 01:15:12]}
{[%emt 00:05:16]} 13. Nf3 {[%clk 01:07:23]} {[%emt 00:17:38]} Neg4 {[%clk
01:14:27]} {[%emt 00:01:14]} 14. Qe1 {[%clk 01:05:42]} {[%emt 00:02:11]} Nxf2+
{[%clk 01:12:54]} {[%emt 00:02:03]} 15. Rxf2 {[%clk 01:05:49]} {[%emt
00:00:23]} Bxf2 {[%clk 01:12:54]} {[%emt 00:00:30]} 16. Qxf2 {[%clk 01:06:13]}
{[%emt 00:00:08]} Ng4 {[%clk 01:12:52]} {[%emt 00:00:31]} 17. Qg1 {[%clk
01:04:58]} {[%emt 00:01:43]} Bd7 {[%clk 01:09:57]} {[%emt 00:03:26]} 18. Nd4
{[%clk 00:52:00]} {[%emt 00:13:29]} Qb6 {[%emt 00:04:15]} 19. Bxg4 {[%clk
00:50:07]} {[%emt 00:02:21]} hxg4 {[%clk 01:05:56]} {[%emt 00:00:48]} 20. Nde2
{[%clk 00:48:58]} {[%emt 00:01:39]} Qxg1+ {[%clk 00:59:45]} {[%emt 00:06:40]}
21. Kxg1 {[%clk 00:49:19]} {[%emt 00:00:09]} Rc8 {[%clk 00:59:27]} {[%emt
00:00:47]} 22. b3 {[%clk 00:48:29]} {[%emt 00:01:22]} Ke7 {[%clk 00:55:45]}
{[%emt 00:04:12]} 23. Ba3 {[%clk 00:47:42]} {[%emt 00:01:18]} b5 {[%clk
00:47:45]} {[%emt 00:08:29]} 24. cxb5 {[%clk 00:46:11]} {[%emt 00:02:00]} Bxb5
{[%emt 00:03:18]} 25. Nxb5 {[%clk 00:44:06]} {[%emt 00:02:34]} axb5 {[%clk
00:45:15]} {[%emt 00:00:13]} 26. e5 {[%clk 00:44:06]} {[%emt 00:00:30]} Kd7
{[%clk 00:43:02]} {[%emt 00:02:42]} 27. exd6 {[%clk 00:44:13]} {[%emt
00:00:25]} Rh7 {[%clk 00:41:58]} {[%emt 00:01:34]} 28. Nd4 {[%clk 00:42:10]}
{[%emt 00:02:31]} Rb8 {[%clk 00:38:46]} {[%emt 00:03:43]} 29. Bb4 {[%clk
00:41:48]} {[%emt 00:00:52]} Rh4 {[%clk 00:37:24]} {[%emt 00:01:52]} 30. g3
{[%clk 00:41:42]} {[%emt 00:00:36]} Rh5 {[%clk 00:35:03]} {[%emt 00:02:51]} 31.
a4 {[%clk 00:31:12]} {[%emt 00:11:01]} bxa4 {[%clk 00:31:36]} {[%emt 00:03:57]}
32. Rxa4 {[%clk 00:31:24]} {[%emt 00:00:18]} Rb7 {[%clk 00:30:29]} {[%emt
00:01:37]} 33. Ba3 {[%clk 00:28:40]} {[%emt 00:03:14]} Rd5 {[%clk 00:29:45]}
{[%emt 00:01:12]} 34. Rc4 {[%clk 00:15:08]} {[%emt 00:14:03]} e5 {[%clk
00:26:14]} {[%emt 00:04:01]} 35. Nf5 {[%clk 00:14:28]} {[%emt 00:01:09]} Rxb3
{[%clk 00:25:26]} {[%emt 00:01:19]} 36. Rc7+ {[%clk 00:13:26]} {[%emt
00:01:33]} Kd8 {[%clk 00:14:38]} {[%emt 00:11:18]} 37. Ne7 {[%clk 00:13:36]}
{[%emt 00:00:20]} Rd1+ {[%clk 00:11:53]} {[%emt 00:03:12]} 38. Kf2 {[%clk
00:12:33]} {[%emt 00:01:35]} Rxa3 {[%clk 00:09:49]} {[%emt 00:02:35]} 39. Nc6+
{[%clk 00:12:54]} {[%emt 00:00:09]} Ke8 {[%clk 00:10:09]} {[%emt 00:00:10]} 40.
d7+ {[%clk 00:12:47]} {[%emt 00:00:36]} Rxd7 {[%clk 00:09:14]} {[%emt
00:01:25]} 41. Rc8+ {[%clk 00:13:16]} {[%emt 00:00:01]} Rd8 {[%clk 00:09:35]}
{[%emt 00:00:09]} 42. Rxd8# {[%clk 00:13:44]} {[%emt 00:00:02]} 1-0

[Event "NJSK 2022 Jeugd C"]
[Site "Almelo, Netherlands"]
[Date "2022.05.05"]
[Round "7.8"]
[White "Krylov, Philippe"]
[Black "Zecha, Oscar"]
[Result "0-1"]
[TimeControl "90min + 30sec/move"]
[WhiteElo "1817"]
[BlackElo "1826"]

1. c4 {[%clk 01:30:58]} {[%emt 00:00:02]} Nf6 {[%clk 01:30:55]} {[%emt
00:00:05]} 2. Nc3 {[%clk 01:31:22]} {[%emt 00:00:06]} e6 {[%clk 01:31:20]}
{[%emt 00:00:04]} 3. d4 {[%clk 01:31:50]} {[%emt 00:00:03]} Bb4 {[%clk
01:31:47]} {[%emt 00:00:03]} 4. e3 {[%clk 01:32:17]} {[%emt 00:00:03]} O-O
{[%clk 01:31:49]} {[%emt 00:00:27]} 5. Nge2 {[%clk 01:32:45]} {[%emt 00:00:03]}
d5 {[%clk 01:30:08]} {[%emt 00:02:11]} 6. a3 {[%clk 01:32:28]} {[%emt
00:00:47]} Be7 {[%clk 01:29:45]} {[%emt 00:00:52]} 7. cxd5 {[%clk 01:32:19]}
{[%emt 00:00:40]} exd5 {[%clk 01:29:21]} {[%emt 00:00:54]} 8. g3 {[%clk
01:31:56]} {[%emt 00:00:53]} b6 {[%clk 01:26:55]} {[%emt 00:02:57]} 9. Bg2
{[%clk 01:32:20]} {[%emt 00:00:05]} Bb7 {[%clk 01:27:14]} {[%emt 00:00:11]} 10.
Nf4 {[%clk 01:31:32]} {[%emt 00:01:18]} Re8 {[%clk 01:24:27]} {[%emt 00:03:17]}
11. O-O {[%clk 01:30:52]} {[%emt 00:01:10]} a5 {[%clk 01:23:03]} {[%emt
00:01:54]} 12. Qb3 {[%clk 01:27:50]} {[%emt 00:03:32]} c6 {[%clk 01:22:43]}
{[%emt 00:00:50]} 13. Bd2 {[%clk 01:28:02]} {[%emt 00:00:18]} Nbd7 {[%clk
01:22:04]} {[%emt 00:01:09]} 14. Rfe1 {[%clk 01:26:59]} {[%emt 00:01:33]} h6
{[%clk 01:14:41]} {[%emt 00:07:52]} 15. f3 {[%clk 01:24:19]} {[%emt 00:03:10]}
Rc8 {[%clk 01:10:11]} {[%emt 00:05:00]} 16. e4 {[%clk 01:19:35]} {[%emt
00:05:14]} Nf8 {[%clk 01:07:41]} {[%emt 00:03:00]} 17. e5 {[%clk 01:17:37]}
{[%emt 00:02:28]} N6d7 {[%clk 01:07:21]} {[%emt 00:00:50]} 18. Bh3 {[%clk
01:17:40]} {[%emt 00:00:28]} Bg5 {[%clk 01:05:59]} {[%emt 00:01:51]} 19. e6
{[%clk 01:16:23]} {[%emt 00:01:48]} fxe6 {[%clk 01:05:40]} {[%emt 00:00:49]} 20.
Bxe6+ {[%clk 01:13:27]} {[%emt 00:03:26]} Nxe6 {[%clk 01:04:07]} {[%emt
00:02:02]} 21. Rxe6 {[%clk 01:13:14]} {[%emt 00:00:44]} Rxe6 {[%clk 01:03:06]}
{[%emt 00:01:31]} 22. Nxe6 {[%clk 01:13:36]} {[%emt 00:00:07]} Qf6 {[%clk
01:03:10]} {[%emt 00:00:27]} 23. Nxg5 {[%clk 01:13:00]} {[%emt 00:01:06]} Qxd4+
{[%clk 01:02:43]} {[%emt 00:00:57]} 24. Kh1 {[%clk 01:13:12]} {[%emt 00:00:17]}
Qxd2 {[%clk 01:00:15]} {[%emt 00:02:58]} 25. Nge4 {[%clk 01:10:28]} {[%emt
00:03:13]} Qe3 {[%clk 00:59:08]} {[%emt 00:01:38]} 26. Kg2 {[%clk 01:09:39]}
{[%emt 00:01:20]} Ba6 {[%clk 00:52:44]} {[%emt 00:06:54]} 27. Nf2 {[%clk
01:06:22]} {[%emt 00:03:47]} Ne5 {[%clk 00:50:50]} {[%emt 00:02:24]} 28. f4
{[%clk 01:06:07]} {[%emt 00:00:44]} Qf3+ {[%clk 00:48:37]} {[%emt 00:02:43]} 29.
Kg1 {[%clk 01:06:19]} {[%emt 00:00:19]} Nc4 {[%clk 00:48:37]} {[%emt 00:00:30]}
30. Qd1 {[%clk 01:05:39]} {[%emt 00:01:09]} Qxd1+ {[%clk 00:46:44]} {[%emt
00:02:23]} 31. Nfxd1 {[%clk 01:05:29]} {[%emt 00:00:40]} Re8 {[%clk 00:46:37]}
{[%emt 00:00:37]} 32. b3 {[%clk 01:05:09]} {[%emt 00:00:51]} Ne3 {[%emt
00:02:59]} 33. Nf2 {[%clk 01:03:45]} {[%emt 00:01:54]} Nc2 {[%clk 00:41:52]}
{[%emt 00:02:44]} 34. Ra2 {[%clk 01:03:39]} {[%emt 00:00:37]} Nd4 {[%clk
00:42:02]} {[%emt 00:00:20]} 35. Ra1 {[%clk 01:01:16]} {[%emt 00:02:54]} Nxb3
{[%clk 00:40:56]} {[%emt 00:01:36]} 36. Rb1 {[%clk 01:01:36]} {[%emt 00:00:10]}
Nd2 {[%clk 00:40:53]} {[%emt 00:00:33]} 37. Rd1 {[%clk 01:00:02]} {[%emt
00:02:04]} Nc4 {[%clk 00:39:47]} {[%emt 00:01:36]} 38. a4 {[%clk 00:59:45]}
{[%emt 00:00:47]} Re3 {[%clk 00:32:16]} {[%emt 00:08:01]} 39. Rd3 {[%clk
00:59:21]} {[%emt 00:00:54]} Re1+ {[%clk 00:32:17]} {[%emt 00:00:28]} 40. Kg2
{[%clk 00:59:46]} {[%emt 00:00:06]} Ne3+ {[%clk 00:32:31]} {[%emt 00:00:16]} 41.
Kf3 {[%clk 00:59:59]} {[%emt 00:00:17]} Bxd3 {[%clk 00:29:12]} {[%emt
00:03:49]} 42. Nxd3 {[%clk 01:00:24]} {[%emt 00:00:05]} Ra1 {[%clk 00:27:25]}
{[%emt 00:02:16]} 43. Kxe3 {[%clk 01:00:48]} {[%emt 00:00:07]} Ra3 {[%clk
00:26:11]} {[%emt 00:01:43]} 44. Kd2 {[%clk 01:00:49]} {[%emt 00:00:29]} d4
{[%clk 00:25:57]} {[%emt 00:00:44]} 45. Ne4 {[%clk 00:58:23]} {[%emt 00:02:56]}
Rxa4 {[%clk 00:25:15]} {[%emt 00:01:12]} 46. Ne5 {[%clk 00:58:47]} {[%emt
00:00:06]} c5 {[%clk 00:24:21]} {[%emt 00:01:25]} 47. Kd3 {[%clk 00:58:41]}
{[%emt 00:00:36]} Ra2 {[%clk 00:21:42]} {[%emt 00:03:09]} 48. h3 {[%clk
00:58:19]} {[%emt 00:00:52]} a4 {[%clk 00:20:43]} {[%emt 00:01:29]} 49. Nc4
{[%clk 00:57:39]} {[%emt 00:01:10]} a3 {[%clk 00:17:45]} {[%emt 00:03:28]} 50.
Ned6 {[%clk 00:54:07]} {[%emt 00:04:02]} Rb2 {[%clk 00:16:33]} {[%emt
00:01:42]} 51. Nxa3 {[%clk 00:54:07]} {[%emt 00:00:30]} Rb3+ {[%clk 00:16:54]}
{[%emt 00:00:09]} 52. Kc4 {[%clk 00:54:27]} {[%emt 00:00:10]} Rxa3 {[%clk
00:17:16]} {[%emt 00:00:07]} 53. Nc8 {[%clk 00:54:54]} {[%emt 00:00:03]} d3
{[%clk 00:17:19]} {[%emt 00:00:27]} 54. Kd4 {[%emt 00:00:26]} 0-1